Workbook

Sheet X
A1: 3D Printer accuracy test to be used with: | D1: https://www.thingiverse.com/thing:2484766
A2: axis | B2: X
A3: scale | B3: 1
D4: expected
C5: now | D5: after correction
A6: Axis setting[steps per mm] | C6: 200 | D6: =C11*C6 -> 200.1322452
A7: G-code | C7: M501 | D7: =CONCATENATE("M92 X",D6) -> M92 X200.132245190719 | E7: To save: | F7: M500
A9: Standard deviation [mm] | C9: =SQRT(SUMSQ(F22:F36)/COUNT(F22:F36)) -> 0.1110749895 | D9: =SQRT(SUMSQ(H23:H35)/COUNT(H23:H35)) -> 0.108604925
A10: mean wall thickness deviation [mm] | C10: =INTERCEPT(E22:E36,C22:C36) -> 0.07752432432 | D10: =C10 -> 0.07752432432 | E10: constant offset (may be reduced by extrusion mutiplier)
A11: Multiplier | C11: =SLOPE(C22:C36,D22:D36) -> 1.000661226
A13: Derived desing gidelines
A14: Tolerance needed so 50% will fit | C14: 0 | D14: 0
A15: Tolerance needed to 84% of the prints fit | C15: =C9+ABS(C10) -> 0.1885993138 | D15: =D9 -> 0.108604925
A16: Tolerance needed to 97% of the prints fit | C16: =C9*2+ABS(C10) -> 0.2996743033 | D16: =D9*2 -> 0.21720985
A17: Tolerance needed to 99.8% of the prints fit | C17: =C9*3+ABS(C10) -> 0.4107492929 | D17: =D9*3 -> 0.3258147751
A18: Mean relative deviation | C18: =(1-C11) -> -0.0006612259536 | D18: 0
B20: length | E20: now | G20: expected after corretion
B21: should be | C21: scaled | D21: is | E21: deviation | F21: no offset | G21: deviation | H21: no offset
A22: 1 | B22: 5 | C22: =B22*$B$3 -> 5 | D22: 5.07 | E22: =D22-C22 -> 0.07 | F22: =E22-$C$10 -> -0.007524324324 | G22: =D22*$C$11-C22 -> 0.07335241558 | H22: =G22-$C$10 -> -0.00417190874
A23: 2 | B23: 10 | C23: =B23*$B$3 -> 10 | D23: 10.1 | E23: =D23-C23 -> 0.1 | F23: =E23-$C$10 -> 0.02247567568 | G23: 0.1066783821 | H23: =G23-$C$10 -> 0.02915405781
A24: 3 | B24: 15 | C24: 15 | D24: 14.97 | E24: =D24-C24 -> -0.03 | F24: -0.1075243243 | G24: -0.02010144747 | H24: -0.0976257718
A25: 4 | B25: 20 | C25: 20 | D25: 19.97 | E25: -0.03 | F25: -0.1075243243 | G25: -0.01679531771 | H25: -0.09431964203
A26: 5 | B26: 25 | C26: 25 | D26: 25.04 | E26: 0.04 | F26: -0.03752432432 | G26: 0.05655709788 | H26: -0.02096722645
A27: 6 | B27: 50 | C27: 50 | D27: 50.26 | E27: 0.26 | F27: 0.1824756757 | G27: 0.2932332164 | H27: 0.2157088921
A28: 7 | B28: 100 | C28: 100 | D28: 100.23 | E28: 0.23 | F28: 0.1524756757 | G28: 0.2962746773 | H28: 0.218750353
A29: 8 | B29: 150 | C29: 150 | D29: 149.8 | E29: -0.2 | F29: -0.2775243243 | G29: -0.1009483522 | H29: -0.1784726765
A30: 9 | B30: 125 | C30: 125 | D30: 124.99 | E30: -0.01 | F30: -0.08752432432 | G30: 0.07264663194 | H30: -0.004877692384
A31: 10 | B31: 75 | C31: 75 | D31: 75.03 | E31: 0.03 | F31: -0.04752432432 | G31: 0.0796117833 | H31: 0.002087458974
A32: 11 | B32: 25 | C32: 25 | D32: 25.05 | E32: 0.05 | F32: -0.02752432432 | G32: 0.06656371014 | H32: -0.01096061419
A33: 12 | B33: 20 | C33: 20 | D33: 19.99 | E33: -0.01 | F33: -0.08752432432 | G33: 0.003217906812 | H33: -0.07430641751
A34: 13 | B34: 15 | C34: 15 | D34: 15.04 | E34: 0.04 | F34: -0.03752432432 | G34: 0.04994483834 | H34: -0.02757948598
A35: 14 | B35: 10 | C35: 10 | D35: 10.04 | E35: 0.04 | F35: -0.03752432432 | G35: 0.04663870857 | H35: -0.03088561575
A36: 15 | B36: 5 | C36: 5 | D36: 5.15 | E36: 0.15 | F36: 0.07247567568 | G36: 0.1534053137 | H36: 0.07588098934
A38: Instructions:
A39: Only edit the yellow fields
A40: 1) enter the current setting for the steps per mm (Control->motion->Xsteps/mmm)
A41: 2) print the part
A42: 3) Measure the distance fromm the base to the top of each colum
A45: in green is the result you can use for your printer setting | I45: Histogram | K45: current | L45: after correction
A46: in blue are the recomended toleances (gaps between parts) to e used when designing | I46: -0.5 | J46: <=-0.5 | K46: =FREQUENCY(E22:E36,I46:I56) -> 0 | L46: =FREQUENCY(G22:G36,I46:I56) -> 0
I47: =I46+0.1 -> -0.4 | J47: =AVERAGE(I46:I47) -> -0.45 | K47: 0 | L47: 0
A48: all values are in mm | I48: =I47+0.1 -> -0.3 | J48: =AVERAGE(I47:I48) -> -0.35 | K48: 0 | L48: 0
I49: -0.2 | J49: -0.25 | K49: 0 | L49: 0
I50: -0.1 | J50: -0.15 | K50: 1 | L50: 1
I51: 0 | J51: -0.05 | K51: 4 | L51: 2
I52: 0.1 | J52: 0.05 | K52: 7 | L52: 8
I53: 0.2 | J53: 0.15 | K53: 1 | L53: 2
I54: 0.3 | J54: 0.25 | K54: 2 | L54: 2
I55: 0.4 | J55: 0.35 | K55: 0 | L55: 0
I56: 0.5 | J56: 0.45 | K56: 0 | L56: 0
J57: >=0.5 | K57: 0 | L57: 0

Sheet Y
A1: axis | B1: Y
A2: scale | B2: 1
D3: expected
C4: now | D4: after correction
A5: Axis setting[steps per mm] | C5: 200 | D5: =C10*C5 -> 200.2321567
A6: G-code | C6: M501 | D6: =CONCATENATE("M92 ",B1,D5) -> M92 Y200.232156745518 | E6: To save: | F6: M500
A8: Standard deviation [mm] | C8: =SQRT(SUMSQ(F21:F35)/COUNT(F21:F35)) -> 0.1759877796 | D8: =SQRT(SUMSQ(H21:H35)/COUNT(H22:H34)) -> 0.1719674534
A9: mean wall thickness deviation [mm] | C9: =INTERCEPT(E21:E35,C21:C35) -> 0.1714486486 | D9: =C9 -> 0.1714486486 | E9: constant offset (may be reduced by extrusion mutiplier)
A10: Multiplier | C10: =SLOPE(C21:C35,D21:D35) -> 1.001160784
A12: Derived desing gidelines
A13: Tolerance needed so 50% will fit | C13: 0 | D13: 0
A14: Tolerance needed to 84% of the prints fit | C14: =C8+ABS(C9) -> 0.3474364283 | D14: =D8 -> 0.1719674534
A15: Tolerance needed to 97% of the prints fit | C15: =C8*2+ABS(C9) -> 0.5234242079 | D15: =D8*2 -> 0.3439349067
A16: Tolerance needed to 99.8% of the prints fit | C16: =C8*3+ABS(C9) -> 0.6994119876 | D16: =D8*3 -> 0.5159023601
A17: Mean relative deviation | C17: =(1-C10) -> -0.001160783728 | D17: 0
B19: length | E19: now | G19: expected after corretion
B20: should be | C20: scaled | D20: is | E20: deviation | F20: no offset | G20: deviation | H20: no offset
A21: 1 | B21: 5 | C21: =B21*$B$2 -> 5 | D21: 5.24 | E21: =D21-C21 -> 0.24 | F21: =E21-$C$9 -> 0.06855135135 | G21: =D21*$C$10-C21 -> 0.2460825067 | H21: =G21-$C$9 -> 0.07463385808
A22: 2 | B22: 10 | C22: =B22*$B$2 -> 10 | D22: 10.21 | E22: =D22-C22 -> 0.21 | F22: =E22-$C$9 -> 0.03855135135 | G22: 0.2218516019 | H22: =G22-$C$9 -> 0.05040295321
A23: 3 | B23: 15 | C23: 15 | D23: 15.21 | E23: =D23-C23 -> 0.21 | F23: 0.03855135135 | G23: 0.2276555205 | H23: 0.05620687185
A24: 4 | B24: 20 | C24: 20 | D24: 20.25 | E24: 0.25 | F24: 0.07855135135 | G24: 0.2735058705 | H24: 0.1020572218
A25: 5 | B25: 25 | C25: 25 | D25: 25.11 | E25: 0.11 | F25: -0.06144864865 | G25: 0.1391472794 | H25: -0.03230136925
A26: 6 | B26: 50 | C26: 50 | D26: 50.37 | E26: 0.37 | F26: 0.1985513514 | G26: 0.4284686764 | H26: 0.2570200277
A27: 7 | B27: 100 | C27: 100 | D27: 100.07 | E27: 0.07 | F27: -0.1014486486 | G27: 0.1861596276 | H27: 0.01471097897
A28: 8 | B28: 150 | C28: 150 | D28: 149.76 | E28: -0.24 | F28: -0.4114486486 | G28: -0.06616102896 | H28: -0.2376096776
A29: 9 | B29: 125 | C29: 125 | D29: 125.03 | E29: 0.03 | F29: -0.1414486486 | G29: 0.1751327895 | H29: 0.003684140812
A30: 10 | B30: 75 | C30: 75 | D30: 75.45 | E30: 0.45 | F30: 0.2785513514 | G30: 0.5375811322 | H30: 0.3661324836
A31: 11 | B31: 25 | C31: 25 | D31: 25.07 | E31: 0.07 | F31: -0.1014486486 | G31: 0.09910084805 | H31: -0.0723478006
A32: 12 | B32: 20 | C32: 20 | D32: 19.98 | E32: -0.02 | F32: -0.1914486486 | G32: 0.003192458877 | H32: -0.1682561898
A33: 13 | B33: 15 | C33: 15 | D33: 14.94 | E33: -0.06 | F33: -0.2314486486 | G33: -0.04265789111 | H33: -0.2141065398
A34: 14 | B34: 10 | C34: 10 | D34: 10.01 | E34: 0.01 | F34: -0.1614486486 | G34: 0.02161944511 | H34: -0.1498292035
A35: 15 | B35: 5 | C35: 5 | D35: 5.11 | E35: 0.11 | F35: -0.06144864865 | G35: 0.1159316048 | H35: -0.0555170438
A37: Instructions:
A38: Only edit the yellow fields
A39: 1) enter the current setting for the steps per mm (Control->motion->Xsteps/mmm)
A40: 2) print the part
A41: 3) Measure the distance fromm the base to the top of each colum
A44: in green is the result you can use for your printer setting | I44: Histogram | K44: current | L44: after correction
A45: in blue are the recomended toleances (gaps between parts) to e used when designing | I45: -0.5 | J45: <=-0.5 | K45: =FREQUENCY(E21:E35,I45:I55) -> 0 | L45: =FREQUENCY(G21:G35,I45:I55) -> 0
I46: =I45+0.1 -> -0.4 | J46: =AVERAGE(I45:I46) -> -0.45 | K46: 0 | L46: 0
A47: all values are in mm | I47: =I46+0.1 -> -0.3 | J47: =AVERAGE(I46:I47) -> -0.35 | K47: 0 | L47: 0
I48: -0.2 | J48: -0.25 | K48: 1 | L48: 0
I49: -0.1 | J49: -0.15 | K49: 0 | L49: 0
I50: 0 | J50: -0.05 | K50: 2 | L50: 2
I51: 0.1 | J51: 0.05 | K51: 4 | L51: 3
I52: 0.2 | J52: 0.15 | K52: 2 | L52: 4
I53: 0.3 | J53: 0.25 | K53: 4 | L53: 4
I54: 0.4 | J54: 0.35 | K54: 1 | L54: 0
I55: 0.5 | J55: 0.45 | K55: 1 | L55: 1
J56: >=0.5 | K56: 0 | L56: 1

Sheet Z
A1: axis | B1: Z
A2: scale | B2: 1
D3: expected
C4: now | D4: after correction
A5: Axis setting[steps per mm] | C5: 800 | D5: =C10*C5 -> 800.4105475
A6: G-code | C6: M501 | D6: =CONCATENATE("M92 ",B1,D5) -> M92 Z800.410547469842 | E6: To save: | F6: M500
A8: Standard deviation [mm] | C8: =SQRT(SUMSQ(F21:F29)/COUNT(F21:F29)) -> 0.07856493711 | D8: =SQRT(SUMSQ(H21:H35)/COUNT(H22:H34)) -> 0.07130904282 | F8: for autolevel only
A9: base deviation [mm] | C9: =INTERCEPT(E21:E35,C21:C35) -> -0.2869419219 | D9: =C9 -> -0.2869419219 | G9: old (M851) | H9: new
A10: Multiplier | C10: =SLOPE(C21:C35,D21:D35) -> 1.000513184 | F10: Z probe offset: | G10: 2.35 | H10: =G10+C9 -> 2.063058078 | I10: =CONCATENATE("M851 ",B1,H10) -> M851 Z2.0630580781415
A12: Derived desing gidelines
A13: Tolerance needed so 50% will fit | C13: 0 | D13: 0
A14: Tolerance needed to 84% of the prints fit | C14: =C8+ABS(C9) -> 0.365506859 | D14: =D8 -> 0.07130904282
A15: Tolerance needed to 97% of the prints fit | C15: =C8*2+ABS(C9) -> 0.4440717961 | D15: =D8*2 -> 0.1426180856
A16: Tolerance needed to 99.8% of the prints fit | C16: =C8*3+ABS(C9) -> 0.5226367332 | D16: =D8*3 -> 0.2139271285
A17: Mean relative deviation | C17: =(1-C10) -> -0.0005131843373 | D17: 0
B19: length | E19: now | G19: expected after corretion
B20: should be | C20: scaled | D20: is | E20: deviation | F20: no offset | G20: deviation | H20: no offset
A21: 1 | B21: 5 | C21: =B21*$B$2 -> 5 | D21: 4.7 | E21: =D21-C21 -> -0.3 | F21: =E21-$C$9 -> -0.01305807814 | G21: =D21*$C$10-C21 -> -0.2975880336 | H21: =G21-$C$9 -> -0.01064611176
A22: 2 | B22: 5 | C22: =B22*$B$2 -> 5 | D22: 4.64 | E22: =D22-C22 -> -0.36 | F22: =E22-$C$9 -> -0.07305807814 | G22: -0.3576188247 | H22: =G22-$C$9 -> -0.07067690282
A23: 3 | B23: 5 | C23: 5 | D23: 4.67 | E23: =D23-C23 -> -0.33 | F23: -0.04305807814 | G23: -0.3276034291 | H23: -0.04066150729
A24: 4 | B24: 5 | C24: 5 | D24: 4.7 | E24: -0.3 | F24: -0.01305807814 | G24: -0.2975880336 | H24: -0.01064611176
A25: 5 | B25: 50 | C25: 50 | D25: 49.77 | E25: -0.23 | F25: 0.05694192186 | G25: -0.2044588155 | H25: 0.08248310633
A26: 6 | B26: 75 | C26: 75 | D26: 74.8 | E26: -0.2 | F26: 0.08694192186 | G26: -0.1616138116 | H26: 0.1253281103
A27: 7 | B27: 100 | C27: 100 | D27: 99.71 | E27: -0.29 | F27: -0.003058078142 | G27: -0.2388303897 | H27: 0.04811153213
A28: 8 | B28: 125 | C28: 125 | D28: 124.61 | E28: -0.39 | F28: -0.1030580781 | G28: -0.3260520997 | H28: -0.03911017787
A29: 9 | B29: 150 | C29: 150 | D29: 149.55 | E29: -0.45 | F29: -0.1630580781 | G29: -0.3732532824 | H29: -0.0863113605
A37: Instructions:
A38: Only edit the yellow fields
A39: 1) enter the current setting for the steps per mm (Control->motion->Xsteps/mmm)
A40: 2) print the part
A41: 3) Measure the distance fromm the base to the top of each colum
A44: in green is the result you can use for your printer setting | I44: Histogram | K44: current | L44: after correction
A45: in blue are the recomended toleances (gaps between parts) to e used when designing | I45: -0.5 | J45: <=-0.5 | K45: =FREQUENCY(E21:E35,I45:I55) -> 0 | L45: =FREQUENCY(G21:G35,I45:I55) -> 0
I46: =I45+0.1 -> -0.4 | J46: =AVERAGE(I45:I46) -> -0.45 | K46: 1 | L46: 0
A47: all values are in mm | I47: =I46+0.1 -> -0.3 | J47: =AVERAGE(I46:I47) -> -0.35 | K47: 3 | L47: 4
I48: -0.2 | J48: -0.25 | K48: 5 | L48: 4
I49: -0.1 | J49: -0.15 | K49: 0 | L49: 1
I50: 0 | J50: -0.05 | K50: 0 | L50: 0
I51: 0.1 | J51: 0.05 | K51: 0 | L51: 0
I52: 0.2 | J52: 0.15 | K52: 0 | L52: 0
I53: 0.3 | J53: 0.25 | K53: 0 | L53: 0
I54: 0.4 | J54: 0.35 | K54: 0 | L54: 0
I55: 0.5 | J55: 0.45 | K55: 0 | L55: 0
J56: >=0.5 | K56: 0 | L56: 0
